bitfinex/quotes_SOLUSD_20240905
["timestamp","ask_amount","ask_price","bid_price","bid_amount"]
[1725540472561,1.5013992,133.12,133.06,7.5154]
[1725540472878,6.6049,133.13,133.06,9.01804928]
[1725540473040,2.5e-06,133.07,133.06,30.66594928]
[1725540473245,2.5e-06,133.07,133.06,94.4633]
[1725540473463,2.5e-06,133.07,133.06,139.4633]
[1725540473758,2.5e-06,133.07,133.06,177.58286388]
[1725540473943,16.4469,133.19,133.17,7.5091]
[1725540473944,1.5013992,133.18,133.17,7.5091]
[1725540474145,1.5013992,133.19,133.18,7.5085]
[1725540474473,2.3546017,133.2,133.19,7.508]
[1725540474683,2.3546017,133.2,133.17,18.7719]
[1725540475345,2.3546017,133.2,133.17,26.281]
[1725540475544,2.3546017,133.2,133.18,7.5083]
[1725540475935,2.3546017,133.2,133.17,26.2809]
[1725540476344,2.3546017,133.2,133.17,26.281]
[1725540476770,9.8622017,133.2,133.14,18.7768]
[1725540477156,45.0,133.19,133.14,18.7768]
[1725540477350,1.5013992,133.18,133.14,18.7768]
[1725540478256,1.5013992,133.18,133.15,7.5102]
[1725540479071,0.8532025,133.2,133.18,7.5081]
[1725540479373,2.3546017,133.2,133.18,7.5081]
[1725540479851,2.3546017,133.2,133.19,7.508]
[1725540479852,0.8532025,133.2,133.19,7.508]
[1725540482748,2.3546017,133.2,133.18,18.7704]
[1725540482953,0.8532025,133.2,133.15,18.7749]
[1725540483460,0.8532025,133.2,133.18,7.5086]
[1725540483657,0.8532025,133.2,133.19,7.508]
[1725540486952,0.8532025,133.2,133.19,9.00945836]
[1725540487476,0.8532025,133.2,133.19,9.00905859]
[1725540487651,0.8532025,133.2,133.19,7.508]
[1725540489263,0.8532025,133.2,133.17,18.7722]
[1725540489780,0.8532025,133.2,133.19,7.508]
[1725540490194,0.8532025,133.2,133.17,18.7722]
[1725540490364,54.8621017,133.2,133.16,7.5097]
[1725540490867,47.3546017,133.2,133.17,26.2815]
[1725540491064,0.8532025,133.2,133.17,26.2815]
[1725540491256,2.3546017,133.2,133.17,26.2815]
[1725540491455,2.3546017,133.2,133.17,18.7729]
[1725540491657,0.8532025,133.2,133.17,26.2817]
[1725540491962,0.8532025,133.2,133.18,1.50158466]
[1725540492169,0.8532025,133.2,133.19,9.0094648]
[1725540492361,0.8532025,133.2,133.19,7.508]
[1725540494577,0.8532025,133.2,133.17,18.7729]
[1725540494882,54.8622017,133.2,133.15,7.5102]
[1725540495055,7.5081,133.19,133.15,7.5102]
[1725540495263,1.5013992,133.18,133.15,7.5102]
[1725540496276,1.5013992,133.19,133.15,7.5102]
[1725540496474,1.5013992,133.19,133.16,7.5096]
[1725540497384,1.5013992,133.19,133.15,7.5102]
[1725540498493,9.0093992,133.19,133.15,7.5102]
[1725540500184,7.5098,133.16,133.11,18.7806]
[1725540500386,1.5013992,133.15,133.11,18.7806]
[1725540500882,9.0118992,133.15,133.11,18.7806]
[1725540501066,1.5013992,133.14,133.11,18.7806]
[1725540501279,54.0127992,133.14,133.09,7.5135]
[1725540501677,54.0127992,133.14,133.08,18.7848]
[1725540501678,46.5013992,133.14,133.08,26.2988]
[1725540501886,54.0126992,133.14,133.08,18.7848]
[1725540502073,9.0114992,133.16,133.11,7.5121]
[1725540502477,9.0114992,133.16,133.12,7.5118]
[1725540502972,7.5103,133.15,133.11,7.5124]
[1725540503283,1.5013992,133.14,133.11,7.5124]
[1725540503493,1.5013992,133.15,133.12,7.5118]
[1725540504169,1.5013992,133.16,133.12,18.7793]
[1725540504367,1.5013992,133.17,133.12,18.7793]
[1725540504687,7.5102,133.16,133.12,18.7793]
[1725540504982,1.5013992,133.15,133.12,18.7793]
[1725540505561,46.5013992,133.15,133.12,18.7793]
[1725540505764,1.5013992,133.14,133.12,18.7793]
[1725540506081,46.5013992,133.15,133.12,26.2912]
[1725540506284,13.5892,133.18,133.12,18.7793]
[1725540506586,1.5013992,133.17,133.12,18.7793]
[1725540507291,1.5013992,133.17,133.14,7.5108]
[1725540507476,46.5013992,133.17,133.14,7.5108]
[1725540507677,1.5013992,133.17,133.14,7.5108]
[1725540507976,1.5013992,133.18,133.15,7.5102]
[1725540508792,1.5013992,133.19,133.15,7.5102]
[1725540509087,21.5013992,133.19,133.15,7.5102]
[1725540510275,1.5013992,133.19,133.16,7.5096]
[1725540510478,1.5013992,133.19,133.14,18.7768]
[1725540510771,0.8532025,133.2,133.12,82.858]
[1725540511073,0.8532025,133.2,133.19,7.508]
[1725540511275,0.8532025,133.2,133.19,9.0092176]
[1725540511794,0.8532025,133.2,133.19,7.508]
[1725540513288,0.8532025,133.2,133.19,52.808]
[1725540513539,0.8532025,133.2,133.19,97.808]
[1725540513678,0.8532025,133.2,133.19,117.808]
[1725540513889,1.5013992,133.29,133.26,7.504]
[1725540514193,1.5013992,133.29,133.25,26.2659]
[1725540515192,1.5013992,133.29,133.26,7.5035]
[1725540515375,21.5013992,133.3,133.26,7.5035]
[1725540515584,1.5013992,133.29,133.26,7.5035]
[1725540516175,21.5013992,133.3,133.27,7.5033]
[1725540516801,9.35377964,133.32,133.3,7.5018]
[1725540517098,9.35377964,133.32,133.28,1.50049296]
[1725540517099,1.5013992,133.32,133.29,26.2574]
[1725540517681,2.3546017,133.33,133.29,26.2574]
[1725540517882,1.5013992,133.32,133.29,26.2574]
[1725540518180,2.3546017,133.33,133.29,26.2574]
[1725540518604,2.3546017,133.33,133.3,7.5017]
[1725540518999,2.3546017,133.33,133.29,26.2575]
[1725540519195,0.8532025,133.33,133.22,37.5316]
[1725540519505,1.5013992,133.32,133.28,7.5026]
[1725540519698,1.5013992,133.32,133.28,7.5028]
[1725540520212,29.0023992,133.32,133.27,7.5034]
[1725540520504,54.0027992,133.31,133.26,18.7596]
[1725540520717,54.0027992,133.31,133.27,7.5035]
[1725540520899,54.0027992,133.31,133.26,26.2636]
[1725540521281,7.502,133.3,133.26,26.2636]
[1725540521583,1.5013992,133.3,133.26,26.2636]
[1725540522082,1.5013992,133.3,133.27,7.5032]
[1725540523401,7.5007,133.32,133.27,7.5032]
[1725540523586,9.0020992,133.32,133.28,7.5028]
[1725540523783,7.5018,133.31,133.26,18.7596]
[1725540523981,1.5013992,133.3,133.26,18.7596]
[1725540524194,1.5013992,133.3,133.28,26.2592]
[1725540524397,7.5012,133.32,133.28,18.7563]
[1725540524604,54.0026992,133.31,133.27,7.5035]
[1725540524805,7.5008,133.32,133.28,7.5028]
[1725540525111,2.3546017,133.33,133.27,18.7584]
[1725540525112,9.8549017,133.33,133.27,18.7584]
[1725540525308,0.8532025,133.33,133.29,7.502]
[1725540526299,7.5012,133.32,133.27,18.7584]
[1725540526488,9.0025992,133.32,133.27,18.7584]
[1725540526687,1.5013992,133.31,133.27,18.7584]
[1725540527106,7.5012,133.32,133.27,18.7584]
[1725540527612,9.0026992,133.31,133.27,26.2615]
[1725540527814,7.5013,133.31,133.27,26.2615]
[1725540528392,1.5013992,133.3,133.27,26.2615]
[1725540530395,61.9794992,133.3,133.25,7.5046]
[1725540530591,7.5035,133.27,133.24,18.7628]
[1725540531296,7.5059,133.23,133.19,7.508]
[1725540531501,1.5013992,133.26,133.18,41.6397]
[1725540531691,1.5013992,133.26,133.18,18.7708]
[1725540531891,7.5059,133.23,133.19,7.5075]
[1725540532320,7.5054,133.24,133.2,7.5073]
[1725540532524,1.5013992,133.23,133.2,7.5073]
[1725540532819,1.5013992,133.23,133.19,7.5079]
[1725540532993,1.5013992,133.23,133.18,18.7708]
[1725540533193,1.5013992,133.23,133.18,26.2794]
[1725540533395,7.5058,133.23,133.18,26.2788]
[1725540533608,1.5013992,133.22,133.18,26.2788]
[1725540534000,54.0077992,133.22,133.18,26.2788]
[1725540534207,21.6161,133.23,133.18,18.7708]
[1725540534410,21.5013992,133.25,133.2,26.2751]
[1725540534623,37.0333992,133.26,133.2,18.7681]
[1725540534822,37.0333992,133.26,133.21,7.5068]
[1725540535002,37.0333992,133.26,133.2,26.2754]
[1725540535203,7.5053,133.24,133.2,18.7681]
[1725540535413,1.5013992,133.23,133.2,18.7681]
[1725540535611,9.0066992,133.24,133.2,26.2755]
[1725540535921,1.5013992,133.23,133.2,26.2755]
[1725540536295,9.0066992,133.24,133.2,26.2755]
[1725540536736,1.5013992,133.24,133.2,26.2755]
[1725540538924,44.5375992,133.26,133.21,1.50131029]
[1725540539332,17.0333992,133.26,133.21,1.50131029]
[1725540539648,14.0245,133.27,133.22,18.7652]
[1725540539800,15.5258992,133.27,133.22,18.7652]
[1725540540140,1.5013992,133.26,133.22,26.2714]
[1725540540304,1.5013992,133.26,133.19,37.5399]
[1725540540305,1.5013992,133.26,133.19,18.7693]
[1725540540929,46.5013992,133.26,133.19,18.7693]
[1725540541324,7.5054,133.24,133.2,7.5074]
[1725540541528,1.5013992,133.23,133.2,7.5074]
[1725540542706,9.0071992,133.23,133.19,18.7693]
[1725540542907,46.5013992,133.22,133.19,18.7693]
[1725540543823,70.1543992,133.22,133.17,7.5087]
[1725540544028,7.5054,133.24,133.19,7.5076]
[1725540544212,17.6478992,133.25,133.18,37.5404]
[1725540544418,1.5013992,133.26,133.23,7.5054]
[1725540545118,6.5208,133.27,133.24,7.5048]
[1725540545119,1.5013992,133.27,133.24,7.5048]
[1725540546211,1.5013992,133.28,133.24,7.5048]
[1725540546413,46.5013992,133.28,133.24,7.5048]
[1725540547524,1.5013992,133.28,133.25,7.5045]
[1725540547921,1.5013992,133.28,133.24,18.7626]
[1725540547922,1.5013992,133.28,133.24,26.2676]
[1725540548111,1.5013992,133.28,133.25,7.5044]
[1725540549130,9.0045992,133.28,133.24,26.2678]
[1725540550227,1.5013992,133.28,133.24,26.2678]
[1725540550426,1.5013992,133.28,133.24,18.7626]
[1725540551128,1.5013992,133.28,133.26,7.5041]
[1725540551838,1.5013992,133.29,133.27,7.5035]
[1725540552210,23.185,133.32,133.28,7.503]
[1725540552439,21.5013992,133.31,133.28,7.503]
[1725540552937,1.5013992,133.31,133.28,7.503]
[1725540553434,1.5013992,133.32,133.29,7.5021]
[1725540553630,2.3546017,133.33,133.3,7.5017]
[1725540553939,2.3546017,133.33,133.3,18.754]
[1725540553940,0.8532025,133.33,133.3,18.754]
[1725540554509,0.8532025,133.33,133.31,7.5011]
[1725540554934,0.8532025,133.33,133.32,7.5007]
[1725540555438,0.8532025,133.33,133.31,7.5012]
[1725540555618,0.8532025,133.33,133.3,26.2557]
[1725540555929,0.8532025,133.33,133.32,7.5007]
[1725540563047,0.8532025,133.33,133.31,7.5011]
[1725540563227,0.8532025,133.33,133.3,18.754]
[1725540563554,0.8532025,133.33,133.32,7.5007]
[1725540565543,0.8532025,133.33,133.32,7.5007]
[1725540566222,0.8532025,133.33,133.31,7.5011]
[1725540566436,0.8532025,133.33,133.27,37.5159]
[1725540566437,7.5008,133.32,133.27,18.758]
[1725540566733,1.5013992,133.31,133.28,7.5025]
[1725540567533,8.4829017,133.33,133.26,7.5035]
[1725540567733,7.5014,133.31,133.27,7.5034]
[1725540567932,1.5013992,133.3,133.27,7.5034]
[1725540568832,1.5013992,133.31,133.27,7.5034]
[1725540570625,1.5013992,133.31,133.28,7.5027]
[1725540571546,6.9815025,133.33,133.28,18.7566]
[1725540571852,8.4829017,133.33,133.28,18.7566]
[1725540572243,8.4829017,133.33,133.3,7.5018]
[1725540572446,0.8532025,133.33,133.3,7.5018]
[1725540572645,2.3546017,133.33,133.3,7.5018]
[1725540572960,2.3546017,133.33,133.3,26.2554]
[1725540572961,47.3546017,133.33,133.3,26.2554]
[1725540573264,47.3546017,133.33,133.3,18.7537]
[1725540573452,0.8532025,133.33,133.3,18.7537]
[1725540574157,0.8532025,133.33,133.31,7.5012]
[1725540575233,0.8532025,133.33,133.32,7.5007]
[1725540575433,0.8532025,133.33,133.3,18.7537]
[1725540575750,0.8532025,133.33,133.32,7.5007]
[1725540585650,0.8532025,133.33,133.3,56.2607]
[1725540585651,0.8532025,133.33,133.31,7.5009]
[1725540587156,0.8532025,133.33,133.32,7.5007]
[1725540601588,0.8532025,133.33,133.28,7.5025]
[1725540601765,7.5008,133.32,133.28,7.5025]
[1725540602095,1.5013992,133.31,133.28,7.5025]
[1725540602398,0.8532025,133.33,133.31,18.753]
[1725540602564,0.8532025,133.33,133.32,9.00067386]
[1725540602765,0.8532025,133.33,133.32,7.5007]
[1725540606178,0.8532025,133.33,133.31,26.2541]
[1725540606375,0.8532025,133.33,133.32,7.5007]
[1725540607269,0.8532025,133.33,133.32,9.00068381]
[1725540607798,0.8532025,133.33,133.32,7.5007]
[1725540610477,0.8532025,133.33,133.32,9.00040536]
[1725540611710,0.8532025,133.33,133.32,7.5007]
[1725540612391,0.8532025,133.33,133.32,9.0002665]
[1725540612777,0.8532025,133.33,133.32,54.1302665]
[1725540612995,0.8532025,133.33,133.32,99.13013004]
[1725540614792,2.5e-06,133.33,133.32,97.6307]
[1725540614989,2.5e-06,133.33,133.32,117.6307]
[1725540615192,2.5e-06,133.33,133.32,120.17238459]
[1725540616793,16.1075,133.45,133.41,7.4956]
[1725540617099,17.6088992,133.45,133.41,7.4956]
[1725540617780,25.1023992,133.45,133.41,7.4956]
[1725540618181,7.4941,133.44,133.4,26.2355]
[1725540618407,1.5013992,133.43,133.4,26.2355]
[1725540619211,8.9960992,133.43,133.4,18.7395]
[1725540619385,16.1075,133.45,133.37,18.7445]
[1725540619386,1.5013992,133.42,133.37,18.7445]
[1725540619588,1.5013992,133.42,133.31,52.9439446]
[1725540619589,6.2932,133.4,133.31,22.5654]
[1725540619801,46.5013992,133.39,133.35,7.4988]
[1725540620000,53.9981992,133.39,133.35,7.4988]
[1725540620490,46.5013992,133.39,133.36,7.4984]
[1725540620888,1.5013992,133.39,133.36,7.4984]
[1725540622511,8.9981992,133.39,133.35,7.4988]
[1725540623006,1.5013992,133.39,133.35,7.4988]
[1725540623703,1.5013992,133.39,133.36,7.4981]
[1725540625717,6.2932,133.4,133.38,7.4973]
[1725540626401,7.8734992,133.43,133.38,18.7426]
[1725540626609,6.3721,133.43,133.39,1.49915571]
[1725540626809,1.5013992,133.44,133.39,1.49915571]
[1725540627391,1.5013992,133.44,133.42,7.495]
[1725540628814,17.8915992,133.45,133.41,8.9943508]
[1725540629019,17.8915992,133.45,133.41,7.4954]
[1725540630018,7.4946,133.43,133.39,7.4965]
[1725540630308,7.4946,133.43,133.37,18.7438]
[1725540630309,28.9965992,133.42,133.37,26.2417]
[1725540630912,28.9965992,133.42,133.38,7.4973]
[1725540631123,1.5013992,133.43,133.4,7.4962]
[1725540631417,1.5013992,133.44,133.4,7.4962]
[1725540631620,1.5013992,133.44,133.4,8.99520863]
[1725540632224,23.8837,133.45,133.41,8.99443307]
[1725540632225,17.8915992,133.45,133.41,8.99443307]
[1725540632526,17.8915992,133.45,133.41,7.4955]
[1725540632527,25.3849992,133.45,133.41,7.4955]
[1725540635417,7.4956,133.41,133.37,7.4978]
[1725540635620,1.5013992,133.4,133.37,7.4978]
[1725540636004,1.5013992,133.41,133.38,7.4973]
[1725540636525,1.5013992,133.41,133.36,18.7452]
[1725540636707,22.5018,133.39,133.33,18.7494]
[1725540637021,1.5013992,133.38,133.35,7.4987]
[1725540637426,1.5013992,133.38,133.36,7.4984]
[1725540637635,15.005,133.39,133.36,7.4984]
[1725540637941,15.005,133.39,133.37,7.4978]
[1725540638099,16.5063992,133.39,133.37,7.4978]
[1725540638505,15.005,133.39,133.37,7.4978]
[1725540639203,16.5063992,133.39,133.37,7.4978]
[1725540639923,16.5063992,133.39,133.36,1.49948718]
[1725540639924,16.5063992,133.39,133.36,8.99788718]
[1725540640120,15.005,133.39,133.36,8.99788718]
[1725540640331,6.2457,133.4,133.37,7.4978]
[1725540640517,1.5013992,133.4,133.37,7.4978]
[1725540641217,1.5013992,133.41,133.38,7.4973]
[1725540641525,15.5515,133.42,133.39,7.4966]
[1725540641724,1.5013992,133.45,133.39,7.4966]
[1725540641725,7.4943,133.44,133.39,26.2377]
[1725540642018,1.5013992,133.44,133.4,7.4957]
[1725540642234,1.5013992,133.44,133.4,8.99470606]
[1725540642440,21.4997,133.46,133.42,7.495]
[1725540642738,23.0010992,133.46,133.42,8.99381642]
[1725540643121,23.0010992,133.46,133.42,7.495]
[1725540643504,1.5013992,133.45,133.42,7.495]
[1725540643702,1.5013992,133.45,133.41,26.2343]
[1725540643920,46.5013992,133.45,133.39,7.4967]
[1725540644123,7.4952,133.42,133.38,26.2394]
[1725540644315,1.5013992,133.41,133.38,26.2394]
[1725540644611,7.4946,133.43,133.38,26.2394]
[1725540644827,7.4946,133.43,133.39,7.4967]
[1725540645431,1.5013992,133.42,133.39,7.4967]
[1725540646120,1.5013992,133.43,133.39,7.4967]
[1725540646322,1.5013992,133.43,133.4,7.4961]
[1725540646722,21.4997,133.46,133.41,7.4956]
[1725540646723,28.9927,133.46,133.41,7.4956]
[1725540646945,1.5013992,133.45,133.41,7.4956]
[1725540647248,1.5013992,133.45,133.4,18.7403]
[1725540647418,8.9947992,133.45,133.41,7.4955]
[1725540649336,8.9947992,133.45,133.42,26.2315]
[1725540649337,1.5013992,133.45,133.42,26.2315]
[1725540650449,1.5013992,133.45,133.39,37.4823]
[1725540650450,1.5013992,133.45,133.39,18.741]
[1725540650745,7.4949,133.43,133.39,18.741]
[1725540650937,1.5013992,133.42,133.39,18.741]
[1725540652749,1.5013992,133.43,133.4,7.4962]
[1725540652955,1.5013992,133.44,133.41,7.4956]
[1725540653248,1.5013992,133.45,133.41,7.4954]
[1725540653455,30.4939992,133.46,133.42,7.495]
[1725540653663,2.3546017,133.47,133.44,7.4939]
[1725540654029,0.8532025,133.47,133.44,7.4939]
[1725540654947,0.8532025,133.47,133.44,8.99245819]
[1725540655148,0.8532025,133.47,133.44,1.49855819]
[1725540655348,0.8532025,133.47,133.45,7.493]
[1725540656531,0.8532025,133.47,133.46,7.4928]
[1725540657352,0.8532025,133.47,133.46,8.99121411]
[1725540657661,0.8532025,133.47,133.46,7.4928]
[1725540658034,0.8532025,133.47,133.46,8.99103839]
[1725540658232,0.8532025,133.47,133.46,7.4928]
[1725540658751,5.63510165,133.53,133.47,6.1949]
[1725540658961,1.5013992,133.56,133.52,7.4895]
[1725540659654,7.4863,133.58,133.54,7.4883]
[1725540659859,1.5013992,133.57,133.54,8.98579193]
[1725540660231,8.9881992,133.57,133.53,26.2105]
[1725540660442,7.4873,133.56,133.5,18.7258]
[1725540660643,1.5013992,133.55,133.51,7.4899]
[1725540660852,1.5013992,133.55,133.5,26.2163]
[1725540661155,7.4901,133.51,133.47,18.7299]
[1725540661453,8.9920992,133.5,133.46,7.4924]
[1725540661659,1.5013992,133.49,133.46,7.4924]
[1725540661859,7.4902,133.51,133.46,7.4924]
[1725540662152,1.5013992,133.5,133.46,7.4924]
[1725540662356,1.5013992,133.5,133.44,18.7342]
[1725540662566,1.5013992,133.5,133.42,7.4949]
[1725540662567,7.4923,133.47,133.42,7.4949]
[1725540662732,7.4923,133.47,133.41,18.7388]
[1725540662733,7.4935,133.45,133.41,18.7388]
[1725540662934,1.5013992,133.44,133.37,18.7435]
[1725540663129,21.5013992,133.45,133.37,18.7435]
[1725540663563,28.9948992,133.45,133.4,7.4962]
[1725540664339,7.4942,133.44,133.39,26.2379]
[1725540664545,46.5013992,133.43,133.36,18.7458]
[1725540664742,21.5013992,133.42,133.36,18.7458]
[1725540665054,45.0,133.41,133.36,18.7458]
[1725540665256,1.5013992,133.4,133.36,18.7458]
[1725540665645,20.0,133.42,133.38,7.4968]
[1725540665854,1.5013992,133.43,133.38,7.4972]
[1725540666043,46.5013992,133.43,133.38,7.4972]
[1725540666362,1.5013992,133.42,133.38,7.4972]
[1725540666733,1.5013992,133.42,133.33,18.7503]
[1725540666960,21.5013992,133.42,133.33,18.7503]
[1725540667158,45.0,133.41,133.33,18.7503]
[1725540667457,21.5013992,133.4,133.33,18.7503]
[1725540667660,45.0,133.41,133.38,7.4972]
[1725540667843,8.9964992,133.42,133.37,7.4978]
[1725540668046,8.9970992,133.41,133.36,7.4982]
[1725540668250,1.5013992,133.4,133.36,7.4982]
[1725540668932,1.5013992,133.39,133.35,18.7465]
[1725540669136,45.0,133.4,133.32,18.7512]
[1725540669332,46.5013992,133.4,133.31,37.5056]
[1725540669569,15.8281,133.41,133.34,18.7481]
[1725540669767,7.4952,133.42,133.37,7.4977]
[1725540670063,1.5013992,133.41,133.37,7.4977]
[1725540670261,8.9954992,133.44,133.38,20.24138635]
[1725540670460,8.9954992,133.44,133.38,18.7421]
[1725540670761,7.4945,133.43,133.39,7.4967]
[1725540670958,8.9954992,133.44,133.39,7.4967]
[1725540671446,1.5013992,133.44,133.41,7.4956]
[1725540671635,17.3294992,133.45,133.41,7.4956]
[1725540671963,17.3294992,133.45,133.4,7.4961]
[1725540671964,24.8228992,133.45,133.4,7.4961]
[1725540672866,17.3294992,133.45,133.39,7.4966]
[1725540673056,7.4947,133.43,133.38,26.2394]
[1725540673248,1.5013992,133.42,133.38,26.2394]
[1725540675467,7.4962,133.4,133.35,26.2457]
[1725540675637,1.5013992,133.39,133.35,26.2457]
[1725540675846,1.5013992,133.39,133.36,7.4983]
[1725540676769,63.7356,133.44,133.37,18.7442]
[1725540676770,1.5013992,133.43,133.37,18.7442]
[1725540676964,21.5013992,133.43,133.37,18.7442]
[1725540677163,1.5013992,133.44,133.39,18.7413]
[1725540677358,8.9953992,133.44,133.39,26.2376]
[1725540677971,7.4947,133.43,133.39,26.2376]
[1725540678155,1.5013992,133.42,133.39,26.2376]
[1725540678462,8.9954992,133.44,133.39,26.2376]
[1725540678640,8.9954992,133.44,133.4,7.4962]
[1725540679046,8.9954992,133.44,133.41,7.4955]
[1725540679047,1.5013992,133.44,133.41,7.4955]
[1725540679288,15.8281,133.45,133.42,7.495]
[1725540679587,17.3294992,133.45,133.41,26.2342]
[1725540679784,13.7841,133.47,133.42,7.495]
[1725540679945,1.5013992,133.46,133.42,7.495]
[1725540680145,1.5013992,133.46,133.43,7.4944]
[1725540680653,1.5013992,133.45,133.41,18.7387]
[1725540682361,1.5013992,133.45,133.39,7.4964]
[1725540682571,7.4941,133.44,133.4,7.4961]
[1725540682757,1.5013992,133.43,133.4,7.4961]
[1725540682950,24.5476992,133.42,133.31,37.5056]
[1725540683147,7.4985,133.36,133.32,7.5005]
[1725540683560,7.498,133.37,133.32,26.2513]
[1725540684255,1.5013992,133.36,133.32,26.2513]
[1725540684447,7.4975,133.38,133.33,7.4996]
[1725540684763,1.5013992,133.37,133.33,7.4996]
[1725540685147,1.5013992,133.37,133.34,7.4993]
[1725540685353,41.7848,133.42,133.34,7.4993]
[1725540685354,7.4969,133.39,133.34,7.4993]
[1725540685566,7.4984,133.37,133.32,18.7508]
[1725540685764,1.5013992,133.36,133.29,18.7553]
[1725540685948,21.5013992,133.39,133.29,18.7553]
[1725540686273,21.5013992,133.39,133.31,18.7527]
[1725540686274,7.4984,133.37,133.31,18.7527]
[1725540686471,1.5013992,133.36,133.31,18.7527]
[1725540686679,8.9998992,133.36,133.31,26.2538]
[1725540686856,46.5013992,133.35,133.3,7.5017]
[1725540687183,1.5013992,133.34,133.3,7.5017]
[1725540687475,24.1905992,133.34,133.29,7.5022]
[1725540687647,24.1905992,133.34,133.3,7.5017]
[1725540689077,24.1905992,133.34,133.29,7.5023]
[1725540690699,24.1905992,133.34,133.3,18.7539]
[1725540690700,15.1896,133.34,133.3,18.7539]
[1725540690856,15.1896,133.34,133.31,7.5012]
[1725540691057,7.4989,133.36,133.32,7.5005]
[1725540691258,1.5013992,133.36,133.32,7.5005]
[1725540691475,25.1150992,133.37,133.33,7.5]
[1725540691783,25.1150992,133.37,133.32,26.2519]
[1725540692281,7.4987,133.36,133.32,18.7514]
[1725540692582,1.5013992,133.35,133.32,18.7514]
[1725540693092,1.5013992,133.35,133.28,7.5028]
[1725540693093,7.501,133.32,133.28,7.5028]
[1725540693250,7.5009,133.32,133.28,7.5029]
[1725540693459,9.0030992,133.31,133.26,26.263]
[1725540693760,1.5013992,133.3,133.26,26.263]
[1725540694557,1.5013992,133.3,133.26,18.7594]
[1725540694769,23.7789,133.31,133.23,18.7637]
[1725540694770,7.5034,133.28,133.23,18.7637]
[1725540694971,7.5046,133.25,133.2,26.275]
[1725540695175,1.5013992,133.24,133.2,26.275]
[1725540695363,9.0066992,133.24,133.2,18.768]
[1725540695667,1.5013992,133.23,133.19,7.5079]
[1725540695866,1.5013992,133.23,133.17,18.7725]
[1725540696073,9.0072992,133.23,133.17,26.2812]
[1725540696590,45.0,133.22,133.17,26.2812]
[1725540696884,1.5013992,133.21,133.18,7.5086]
[1725540698155,1.5013992,133.22,133.18,7.5086]
[1725540698360,7.9501992,133.22,133.15,7.5098]
[1725540698565,45.0,133.21,133.15,7.5098]
[1725540698771,1.5013992,133.2,133.14,27.1408025]
[1725540698980,7.5083,133.19,133.14,27.1408025]
[1725540699188,46.5013992,133.18,133.14,0.8532025]
[1725540699393,45.0,133.21,133.14,0.8532025]
[1725540699394,7.5098,133.16,133.14,0.8532025]
[1725540699563,1.5013992,133.15,133.14,0.8532025]
[1725540700358,7.5092,133.17,133.14,0.8532025]
[1725540700562,9.0115992,133.16,133.14,0.8532025]
[1725540700888,1.5013992,133.15,133.14,0.8532025]
[1725540701093,1.5013992,133.16,133.14,0.8532025]
[1725540701269,9.0116992,133.15,133.14,0.8532025]
[1725540701467,54.0116992,133.15,133.14,0.8532025]
[1725540701972,1.5013992,133.15,133.14,0.8532025]
[1725540702163,9.0116992,133.15,133.14,0.8532025]
[1725540702365,54.0116992,133.15,133.14,0.8532025]
[1725540702570,7.512,133.13,133.07,26.3008]
[1725540702768,9.0135992,133.12,133.07,26.3008]
[1725540703293,7.5115,133.13,133.09,7.5137]
[1725540703586,9.0122992,133.14,133.09,7.5137]
[1725540704587,45.0,133.13,133.09,7.5137]
[1725540704789,1.5013992,133.12,133.09,7.5137]
[1725540705088,45.0,133.13,133.09,7.5137]
[1725540705283,1.5013992,133.13,133.09,7.5137]
[1725540705669,1.5013992,133.14,133.09,18.7831]
[1725540705886,1.5013992,133.15,133.11,7.5125]
[1725540707498,1.5013992,133.14,133.1,7.5125]
[1725540708493,46.5013992,133.14,133.1,7.5125]
[1725540709590,24.0401,133.16,133.12,7.5119]
[1725540709787,1.5013992,133.15,133.12,7.5119]
[1725540709986,46.5013992,133.15,133.11,7.5124]
[1725540710187,1.5013992,133.14,133.11,7.5124]
[1725540712584,1.5013992,133.14,133.09,18.7831]
[1725540712773,7.5124,133.12,133.06,18.7877]
[1725540712971,7.5114,133.14,133.08,18.7846]
[1725540713187,1.5013992,133.14,133.1,7.5129]